[Event "37th Magistral de Leon 2024"]
[Site "Leon"]
[Date "2024.06.28"]
[Round "1.3"]
[White "Topalov, Veselin"]
[Black "Anand, Viswanathan"]
[Result "0-1"]
[ECO "C88"]
[WhiteElo "2727"]
[BlackElo "2751"]
[Annotator "TA"]
[PlyCount "138"]
[EventDate "2024.06.28"]
[EventCountry "ESP"]
[SourceTitle "playchess.com"]
[Source "ChessBase"]
[SourceQuality "1"]
[TimeControl "1200+10"]

{[%evp 16,138,47,14,24,6,18,5,11,9,9,0,27,20,27,16,29,22,13,8,14,18,19,0,12,0,5,0,6,0,0,-12,0,0,0,0,0,-8,-10,-14,-20,-12,-10,-8,-8,-108,-93,-202,-121,-159,-157,-166,-169,-192,-148,-295,-219,-640,-635,-741,-83,-105,-86,-642,-214,-462,-426,-414,-394,-381,-385,-385,-385,-385,-343,-318,-277,-283,-269,-302,-278,-504,-487,-466,-470,-518,-516,-510,-531,-558,-563,-568,-559,-615,-609,-691,-702,-698,-702,-689,-668,-1253,-5057,-29960,-29964,-29959,-29963,-29969,-29970,-29970,-29977,-29977,-29974,-29982,-29983,-29984,-29973,-29975,-29977,-29977,-29978,-29978,-29979,-29982,-29970]} 1. e4 {[%emt 0:00:03]} e5 {[%emt 0:00:01]} 2. Nf3 {[%emt 0:00:02]} Nc6 {[%emt 0:00:01]} 3. Bb5 {[%emt 0:00:14][%cal Bf1b5,Bb5a4,Ba4b3,Bb3a2][%mdl 32]} a6 {[%emt 0:00:02]} 4. Ba4 {[%emt 0:00:01]} Nf6 {[%emt 0:00:03]} 5. O-O {[%emt 0:00:03]} Be7 {[%emt 0:00:04]} 6. Re1 {[%emt 0:00:18]} b5 {[%emt 0:00:03]} 7. Bb3 {[%emt 0:00:01]} O-O {[%emt 0:00:05]} 8. a4 {[%emt 0:00:01]} Rb8 {[%emt 0:00:29]} 9. d3 {[%emt 0:00:11]} d6 {[%emt 0:00:05]} 10. h3 {[%emt 0:00:44]} Na5 {[%emt 0:01:28]} 11. Ba2 {[%emt 0:00:06]} c5 {[%emt 0:00:02] The position is equal.} 12. axb5 {[%emt 0:01:34]} axb5 {[%emt 0:00:03]} 13. c3 {[%emt 0:00:12]} Nc6 {[%emt 0:01:06]} 14. Na3 {[%emt 0:00:42][%cal Bb1a3,Ba3c2,Bc2e3][%mdl 32]} h6 {[%emt 0:00:55]} 15. Nc2 {[%emt 0:00:42]} Re8 {[%emt 0:00:29]} 16. Ne3 {[%emt 0:01:30]} Bf8 {[%emt 0:00:08]} 17. Bd2 {[%emt 0:00:09]} Be6 18. Bxe6 {[%emt 0:00:03]} Rxe6 {[%emt 0:00:16]} 19. Qb3 {[%emt 0:02:03]} Qc8 {[%emt 0:02:31]} 20. Ra2 {[%emt 0:00:46]} Re8 {[%emt 0:00:23]} 21. Rea1 {[%emt 0:00:14]} Qe6 {[%emt 0:00:10]} 22. Nd5 {[%emt 0:01:10]} Kh8 {[%emt 0:00:46]} 23. c4 {[%emt 0:00:19] aiming for Nc7.} bxc4 24. Qxc4 {[%emt 0:00:01]} Rec8 {[%emt 0:00:42]} 25. Nxf6 {[%emt 0:03:20]} Qxf6 {[%emt 0:00:05]} 26. Bc3 {[%emt 0:00:05]} Nd4 {[%emt 0:01:09]} 27. Nd2 {[%emt 0:02:34]} Ne2+ {[%emt 0:00:23]} 28. Kf1 {[%emt 0:00:04]} Nf4 {[%emt 0:00:01]} 29. Ra7 {[%emt 0:00:06]} Kg8 {[%emt 0:00:17]} 30. R1a6 {[%emt 0:00:58]} (30. g3 $11 Nxh3 31. Kg2 Nxf2 32. Rf1) 30... Re8 $1 $17 {[%emt 0:03:34]} 31. Rd7 {[%emt 0:00:21]} (31. Nf3 $17 {is a better defense.}) 31... Ra8 {[%emt 0:00:42]} ({Black should play} 31... Re6 $19 32. Nf3 Qg6) 32. Raa7 {[%emt 0:00:14]} Rxa7 {[%emt 0:00:07]} 33. Rxa7 {[%emt 0:00:01]} Qg6 $40 {[%emt 0:00:05][%mdl 128] Black wants a kill.} 34. g3 {[%emt 0:00:04]} Nxh3 {[%emt 0:00:02]} 35. Nf3 {[%emt 0:00:10]} (35. Ke1 $17 {keeps fighting.}) 35... Qh5 {[%emt 0:01:16]} 36. Kg2 {[%emt 0:00:34] [#]} (36. Nh4) 36... Re6 $1 $19 {[%emt 0:00:45] ...Rf6 is the strong threat.} 37. Nh4 {[%emt 0:02:29] [#]} Nf4+ $2 {[%emt 0:01:31]} 38. gxf4 $17 {[%emt 0:00:01]} exf4 {[%emt 0:03:13]} (38... Qxh4 $6 39. f5 Qg5+ 40. Kf1 $11) 39. Nf5 {[%emt 0:00:25][%mdl 8192] This costs White the game.} (39. Qd5 $17 Qxh4 40. Qf5 Qg5+ (40... Rg6+ 41. Kf1 $17) 41. Kf3 Qxf5 42. exf5) 39... Qd1 $2 {[%emt 0:00:17]} (39... Qe2 {( -> ...Rg6+)} 40. Nh4 Qg4+ 41. Kf1 Qxh4) 40. Rxf7 $2 {[%emt 0:02:17]} ({Don't blunder} 40. Kh2 $2 Qe2 $19) (40. Qd5) 40... Kxf7 {[%emt 0:00:08]} 41. Qd5 {[%emt 0:00:26]} Qg4+ {[%emt 0:00:26]} 42. Kf1 {[%emt 0:00:01]} f3 {[%emt 0:00:11]} 43. Ne3 {[%emt 0:00:10] Wards off Qg2+} Qg5 {[%emt 0:00:10]} 44. e5 {[%emt 0:00:16]} dxe5 {[%emt 0:00:16][%cal Oe5e4] Hoping for ...e4!} 45. Qxf3+ {[%emt 0:00:05]} Kg8 {[%emt 0:00:09]} 46. Qd5 {[%emt 0:00:02]} Qg6 {[%emt 0:00:16]} 47. Nc4 {[%emt 0:00:28]} Kh7 {[%emt 0:00:07]} 48. Nxe5 $2 {[%emt 0:00:07]} (48. Bxe5 Be7 49. Bg3) 48... Qf5 $19 {[%emt 0:00:02] Threatens to win with ...Bd6.} 49. Qe4 {[%emt 0:00:09]} Qxe4 50. dxe4 {[%emt 0:00:01][%mdl 4096] Endgame. KRB-KBN} Bd6 {[%emt 0:00:04]} 51. Nc4 {[%emt 0:00:02]} Bf4 {[%emt 0:00:01]} 52. f3 {[%emt 0:00:00]} h5 {[%emt 0:00:07]} 53. Be1 {[%emt 0:00:19]} g5 {[%emt 0:00:07]} 54. Bf2 {[%emt 0:00:02]} Ra6 {[%emt 0:00:46]} 55. Bxc5 {[%emt 0:00:22]} Ra1+ {[%emt 0:00:01]} 56. Kg2 {[%emt 0:00:04]} Rc1 {[%emt 0:00:02]} 57. b3 {[%emt 0:00:01]} Rc2+ {[%emt 0:00:02]} 58. Kg1 {[%emt 0:00:06]} h4 {[%emt 0:00:01]} 59. Bd6 {[%emt 0:00:14]} h3 {[%emt 0:00:24] Black mates.} 60. Bxf4 {[%emt 0:00:03]} gxf4 {[%emt 0:00:01] KR-KN} 61. Nd6 {[%emt 0:00:36]} Rc3 {[%emt 0:00:25]} 62. Kh2 {[%emt 0:00:02]} Rxf3 {[%emt 0:00:04]} 63. b4 {[%emt 0:00:13]} Kg6 {[%emt 0:00:17]} 64. e5 {[%emt 0:00:32]} Re3 {[%emt 0:00:17]} 65. b5 {[%emt 0:00:04]} Rb3 {[%emt 0:00:37]} 66. e6 {[%emt 0:00:17]} Kf6 {[%emt 0:00:05]} 67. Ne4+ {[%emt 0:00:02]} Ke7 $1 {[%emt 0:00:02]} (67... Kxe6 68. Nc5+ Ke7 69. Nxb3 f3 70. Kxh3 f2 71. Kg2 Kd6 72. Kxf2) 68. b6 {[%emt 0:00:04]} Rxb6 {[%emt 0:00:24]} ({Worse is} 68... Kxe6 69. Nc5+ Kd6 70. Nxb3 $11) 69. Kxh3 {[%emt 0:00:02]} Kxe6 {[%emt 0:00:12] Weighted Error Value: White=0.65/Black=0.32.  Loses game:     	White=1     	---        Mistake:       	White=6     	Black=2      Inaccurate:     	White=1     	Black=1      OK:         	White=15    	Black=15     Best:        	White=3     	Black=4      Strong:       	---       	Black=2} 0-1

[Event "37th Magistral de Leon 2024"]
[Site "Leon"]
[Date "2024.06.29"]
[Round "1.3"]
[White "Santos Latasa, Jaime"]
[Black "Erigaisi Arjun"]
[Result "1-0"]
[ECO "B51"]
[WhiteElo "2626"]
[BlackElo "2761"]
[Annotator "TA"]
[PlyCount "107"]
[EventDate "2024.06.28"]
[EventCountry "ESP"]
[SourceTitle "playchess.com"]
[Source "ChessBase"]
[SourceQuality "1"]
[TimeControl "1200+10"]

{[%evp 42,107,-24,-25,0,0,0,0,0,0,0,0,-16,-33,-26,-27,-37,-61,-52,-72,-66,-132,-63,-45,-15,-36,-30,-34,-33,-68,-39,-70,-47,-57,-52,-68,316,316,313,301,347,326,389,395,395,402,364,347,698,325,319,0,888,809,989,989,1158,1192,1197,1132,1189,1239,29988,29989,29989,29990,29990,29991]} 1. e4 {[%emt 0:00:03]} c5 {[%emt 0:00:01]} 2. Nf3 {[%emt 0:00:02]} Nc6 {[%emt 0:00:03]} 3. Bb5 {[%emt 0:00:05]} d6 {[%emt 0:00:02]} 4. O-O {[%emt 0:00:09]} Bd7 {[%emt 0:00:04]} 5. Re1 {[%emt 0:00:18]} Nf6 {[%emt 0:00:04]} 6. c3 {[%emt 0:00:11]} a6 {[%emt 0:00:02]} 7. Bf1 {[%emt 0:00:04]} Bg4 {[%emt 0:00:04]} 8. h3 {[%emt 0:00:09]} Bxf3 {[%emt 0:00:04]} 9. Qxf3 {[%emt 0:00:02]} e6 {[%emt 0:00:02] is recently more successful than 9...g6. B51: Sicilian: Moscow Variation (3 Bb5+) without 3...Bd7.} 10. d3 {[%emt 0:00:08]} Be7 {[%emt 0:00:02]} 11. Nd2 {[%emt 0:00:23]} O-O {[%emt 0:00:03]} 12. Qe2 {[%emt 0:00:04]} d5 {[%emt 0:00:23]} 13. Nf3 {[%emt 0:00:20]} d4 {[%emt 0:00:07]} 14. e5 {[%emt 0:00:28]} Nd7 {[%emt 0:00:16]} 15. c4 {[%emt 0:00:12]} b5 {[%emt 0:00:17]} 16. b3 {[%emt 0:00:19]} bxc4 {[%emt 0:00:53]} 17. bxc4 {[%emt 0:00:17]} Rb8 {[%emt 0:00:02]} 18. g3 {[%emt 0:00:13]} Qa5 {[%emt 0:00:39]} 19. Qd1 $146 {[%emt 0:02:35]} ({Predecessor:} 19. Bg2 Qa4 20. a3 Bd8 21. Qe4 Ne7 22. h4 h6 23. h5 Ba5 24. Rf1 Qc2 25. Bf4 {0-1 Adams,M (2693)-Kuzubov,Y (2664) GER CupT final 2019 (2.1)}) 19... Rb7 {[%emt 0:02:25]} 20. h4 {[%emt 0:04:20]} Rfb8 {[%emt 0:00:12]} 21. h5 {[%emt 0:00:18]} h6 {[%emt 0:00:32]} 22. Bd2 {[%emt 0:04:34]} Qa3 {[%emt 0:00:43]} 23. Bc1 {[%emt 0:01:12]} Qc3 {[%emt 0:00:09]} 24. Bd2 {[%emt 0:00:16]} Qa3 {[%emt 0:00:02]} 25. Bc1 {[%emt 0:01:00]} Qc3 {[%emt 0:00:03]} 26. Bd2 {[%emt 0:00:01]} Qb2 {[%emt 0:01:07]} 27. g4 {[%emt 0:02:42]} Bd8 {[%emt 0:00:42]} 28. Rc1 {[%emt 0:02:20]} Bc7 {[%emt 0:00:47]} 29. Rc2 {[%emt 0:00:14]} Qb1 {[%emt 0:00:17]} 30. Rc1 {[%emt 0:00:59]} Qxa2 {[%emt 0:00:13]} 31. Bf4 {[%emt 0:00:05] [#]} (31. Ra1 $15 Qb3 32. Qe2) 31... a5 {[%emt 0:01:00]} (31... Ba5 $1 $17 {[%cal Ra5e1]} 32. Nd2 Rb6 (32... Bxd2 33. Bxd2 Rb2 34. Ra1 $17)) 32. Ra1 $15 {[%emt 0:00:20]} Qb3 {[%emt 0:01:40]} 33. Qe2 $1 {[%emt 0:00:03]} Ra7 {[%emt 0:01:32]} 34. Qe4 {[%emt 0:00:14]} Qb7 {[%emt 0:00:04]} 35. Bg2 {[%emt 0:00:37]} Nb4 {[%emt 0:02:02]} 36. Qe2 {[%emt 0:00:03]} Qc8 {[%emt 0:00:02]} 37. g5 {[%emt 0:00:14]} hxg5 $1 {[%emt 0:00:02]} 38. Nxg5 {[%emt 0:00:03]} f6 $2 {[%emt 0:01:46][%mdl 8192]} (38... Rb6 $15 {stays ahead.}) 39. exf6 $18 (39. Nxe6 Nxe5 40. Nxc5 Bd6 $11) 39... Nxf6 {[%emt 0:00:02]} 40. Bh3 $1 {[%emt 0:00:34]} (40. Qxe6+ Qxe6 41. Nxe6 Bxf4 42. Nxf4 Nc2 $19) (40. Nxe6 Bxf4 41. Nxf4 Qf5 $11) 40... Kh8 {[%emt 0:01:29]} 41. Nxe6 {[%emt 0:00:25]} (41. Qxe6 $2 {is the wrong capture.} Bxf4 42. Qxc8+ Rxc8 43. Bxc8 Bxg5 $19) ({Don't play} 41. Bxe6 Qf8 42. Nf7+ Kh7 $18) 41... Bxf4 {[%emt 0:01:03]} 42. Nxf4 {[%emt 0:00:02]} Qd8 {[%emt 0:00:01]} 43. Ng6+ {[%emt 0:00:04]} Kh7 {[%emt 0:00:02]} 44. Bf5 {[%emt 0:00:05]} Qd6 $2 {[%emt 0:00:57]} (44... Ng8) 45. Ne7+ {[%emt 0:00:08]} (45. Qd2 $142) 45... Kh8 $18 {[%emt 0:00:02]} 46. Ng6+ $2 {[%emt 0:00:03]} (46. Kg2 $18) 46... Kg8 $2 {[%emt 0:00:08][%mdl 8192]} (46... Kh7 $11 47. Qd2 Kg8) 47. Qf3 $18 {[%emt 0:00:16]} Rb6 {[%emt 0:01:09]} 48. Re2 {[%emt 0:00:14]} a4 {[%emt 0:01:10]} 49. Rae1 {[%emt 0:00:01]} Qd8 {[%emt 0:00:06]} 50. Ne7+ {[%emt 0:00:14]} Kf8 {[%emt 0:00:07]} 51. Nc8 {[%emt 0:00:11]} Raa6 {[%emt 0:01:42]} 52. Nxb6 {[%emt 0:00:12]} Rxb6 {[%emt 0:00:03]} 53. Bg6 {[%emt 0:00:03]} Rb8 {[%emt 0:00:02]} 54. h6 {[%emt 0:00:23]} 1-0

[Event "37th Magistral de Leon 2024"]
[Site "Leon"]
[Date "2024.06.29"]
[Round "1.4"]
[White "Erigaisi Arjun"]
[Black "Santos Latasa, Jaime"]
[Result "0-1"]
[ECO "E04"]
[WhiteElo "2761"]
[BlackElo "2626"]
[Annotator "TA"]
[PlyCount "122"]
[EventDate "2024.06.28"]
[EventCountry "ESP"]
[SourceTitle "playchess.com"]
[Source "ChessBase"]
[SourceQuality "1"]
[TimeControl "1200+10"]

{[%evp 19,122,8,17,0,18,15,20,12,16,23,13,0,0,-6,-2,-7,55,50,31,29,102,114,95,110,108,91,101,115,116,-6,-13,-52,-2,-57,-29,-129,-91,-131,-57,-108,-53,-146,-21,-11,-14,-81,-4,-29,-41,-63,-57,-66,-54,-64,-17,-101,-33,-198,-165,-357,-355,-352,-352,-308,-328,-392,-382,-396,-389,-382,-365,-370,-368,-368,-358,-481,-486,-558,-546,-562,-434,-939,-752,-1031,-914,-5135,-5320,-3961,-1749,-1416,-1118,-4606,-1131,-1116,-1092,-945,-941,-595,-500,-29976,-29978,-29978,-29979,-29975,-6103]} 1. d4 {[%emt 0:00:02]} Nf6 {[%emt 0:00:01]} 2. c4 {[%emt 0:00:02]} e6 {[%emt 0:00:02]} 3. g3 {[%emt 0:00:02]} d5 {[%emt 0:00:08]} 4. Bg2 {[%emt 0:00:02]} dxc4 {[%emt 0:00:02]} 5. Nf3 {[%emt 0:00:10]} c5 {[%emt 0:00:01]} 6. O-O {[%emt 0:00:11]} Nc6 {[%emt 0:00:02]} 7. Qa4 {[%emt 0:00:04]} Bd7 {[%emt 0:00:07]} 8. Qxc4 {[%emt 0:00:03]} b5 {[%emt 0:00:25]} 9. Qd3 {[%emt 0:00:02]} c4 {[%emt 0:00:04]} 10. Qd1 {[%emt 0:00:02]} Rc8 {[%emt 0:00:13]} 11. Bf4 {[%emt 0:00:03]} Be7 {[%emt 0:00:12]} 12. Nc3 {[%emt 0:00:10]} a6 {[%emt 0:01:00]} 13. a3 {[%emt 0:00:05] The position is equal.} Na5 {[%emt 0:01:40]} 14. Qc2 {[%emt 0:00:32]} Nd5 {[%emt 0:00:30]} 15. Nxd5 {[%emt 0:00:40]} (15. Ne5 {feels hotter.} Nxf4 16. gxf4 O-O 17. Rad1) 15... exd5 {[%emt 0:00:02]} 16. e4 {[%emt 0:00:10]} Be6 {[%emt 0:00:35]} 17. Rfe1 {[%emt 0:01:27] Black must now prevent exd5.} Nc6 {[%emt 0:00:54]} (17... Nb3 $11 18. Rad1 O-O) 18. exd5 $14 {[%emt 0:02:59]} Bxd5 {[%emt 0:00:03]} 19. Qf5 $1 {[%emt 0:00:06]} g6 {[%emt 0:01:40] [#]} (19... Bxf3 $11 20. Bxf3 Nxd4 21. Rxe7+ Kxe7 22. Qe4+ Ne6 (22... Kf8 $2 23. Bg4 $18)) 20. Rxe7+ $1 $16 {[%emt 0:00:37][%mdl 512]} Nxe7 {[%emt 0:00:31]} (20... Kxe7 $2 21. Bg5+ Kf8 22. Qf4 $18) 21. Qf6 {[%emt 0:00:02][%csl LRa6,LRh8]} Rf8 {[%emt 0:00:55]} (21... O-O 22. Be5 Bxf3 23. Qh8#) 22. Qxa6 {[%emt 0:00:52] Black is weak on the dark squares} f6 {[%emt 0:00:16] [#]} 23. Re1 $1 {[%emt 0:01:28][%cal Of3g5]} (23. Qxb5+ Qd7 24. a4 Ra8 $14) 23... Rf7 {[%emt 0:00:41]} 24. Qxb5+ {[%emt 0:04:04]} (24. Nh4 $16 {Bxd5 is the strong threat.} Rc6 25. Qxb5 Bxg2 26. Nxg2) 24... Kf8 $11 {[%emt 0:00:45]} 25. h4 {[%emt 0:02:43]} Kg8 {[%emt 0:00:34]} (25... Kg7 $15) 26. Qa4 {[%emt 0:00:45]} (26. a4 $11) 26... Nf5 {[%emt 0:00:33][%mdl 1024] Black has compensation.} 27. Rd1 {[%emt 0:01:13]} (27. Bd2 $11) 27... Qd7 {[%emt 0:01:31]} 28. Qc2 {[%emt 0:00:03]} Re7 {[%emt 0:00:19] Prevents Ne5} (28... Qc6 $17 29. Qd2 Rd7 (29... Bxf3 30. d5 $16)) 29. Qc3 {[%emt 0:00:39]} ({White should try} 29. Ne5 $1 $15 Qe6 (29... fxe5 $2 30. dxe5 Bf7 31. Rxd7 $18) 30. Bxd5 Qxd5 31. Ng4) 29... Rce8 {[%emt 0:00:45]} (29... Qc6 $17 30. Rc1 Re2) 30. Ne1 {[%emt 0:00:28]} (30. Bf1 $15) 30... Bxg2 {[%emt 0:01:51]} (30... h6 $17 {And now ...g5 would win.} 31. Qc1 g5 32. hxg5 Nxd4 (32... fxg5 33. Be5 $11) 33. Bxd5+ Qxd5) 31. Nxg2 {[%emt 0:00:02]} Qd5 {[%emt 0:00:05]} 32. Bc1 {[%emt 0:00:55]} (32. Ne3 $1 $11 {remains equal.} Nxe3 33. Bxe3) 32... Nd6 {[%emt 0:00:23] Black has more active pieces.} (32... Rd7 $17) 33. Nf4 {[%emt 0:00:19]} Qf5 {[%emt 0:00:05]} 34. d5 {[%emt 0:00:07]} g5 $36 {[%emt 0:01:16][%mdl 2048] Black has good play.} 35. hxg5 {[%emt 0:00:19]} fxg5 {[%emt 0:00:01][%cal Of5g4] ...Qg4! would now be deadly.} 36. Ne6 {[%emt 0:00:02]} h6 {[%emt 0:00:18]} (36... Ne4 $15 37. Qc2 Rf7) 37. Qd4 {[%emt 0:00:17]} (37. Be3 $11) 37... Rf7 {[%emt 0:00:10]} ({Black should play} 37... Ne4 $17 38. Be3 Qf3) 38. Re1 $2 {[%emt 0:00:17] White does not recover from this.} ({Better is} 38. a4 $15) 38... Nb5 $19 {[%emt 0:00:25]} 39. Qc5 {[%emt 0:01:15] [#]} (39. Qd2 Rd7 40. Nc5 Rxe1+ (40... Rxd5 $2 41. Rxe8+ Kg7 42. Ne6+ Kg6 43. Qe2 $18) 41. Qxe1 Rxd5 42. Qe8+ Kg7 43. Be3) 39... Nc7 $1 {[%emt 0:00:12][%cal Rc7e6][%mdl 512]} 40. Be3 {[%emt 0:00:08]} Qxd5 {[%emt 0:00:45]} ({And not} 40... Nxe6 41. dxe6 Qxe6 42. Bd2 $14) ({Don't take} 40... Nxd5 41. Nd4 Qf6 (41... Rxe3 42. Nxf5 Rxe1+ 43. Kg2 $15) 42. Qxd5 $19) 41. Qxd5 {[%emt 0:00:49]} Nxd5 {[%emt 0:00:02]} 42. Nd4 {[%emt 0:00:02]} Nxe3 {[%emt 0:00:06]} 43. fxe3 {[%emt 0:00:02][%mdl 4096] Endgame. KRR-KRN} Rb8 {[%emt 0:00:07]} 44. Re2 {[%emt 0:00:03]} Rfb7 {[%emt 0:00:07]} 45. Rc2 {[%emt 0:00:01]} Rxb2 {[%emt 0:00:12]} 46. Rxc4 {[%emt 0:00:02]} Ra2 {[%emt 0:00:05]} 47. Rc1 {[%emt 0:00:21] Inhibits Rb1.} Rbb2 {[%emt 0:00:43]} (47... Rxa3 $2 48. Nf5 $19) 48. Nf5 {[%emt 0:00:07]} h5 {[%emt 0:00:27]} 49. e4 {[%emt 0:00:13]} Kf7 {[%emt 0:00:18]} 50. e5 {[%emt 0:00:26]} (50. Re1 $142) 50... Ke6 {[%emt 0:00:17]} 51. Ne3 {[%emt 0:00:33]} Re2 {[%emt 0:00:09]} (51... Kxe5 52. Nc4+ Kf5 53. Nxb2 Rxb2 54. Rc4 $11) 52. Nf1 {[%emt 0:00:29]} Rxa3 {[%emt 0:00:26]} 53. Rc8 {[%emt 0:00:22]} Rf3 {[%emt 0:00:17]} 54. Rc1 {[%emt 0:00:26] Wards off Re1} Kxe5 {[%emt 0:00:39] Strongly threatening ...Ra3.} 55. Rc5+ {[%emt 0:00:01]} Kf6 {[%emt 0:00:09]} (55... Kd4 $142 56. Rxg5 Re1 57. Rxh5 Rexf1+ (57... Rfxf1+ $2 58. Kg2 $19) 58. Kg2 R3f2+ 59. Kh3 Rh1+ 60. Kg4 Rxh5 61. Kxh5 Ke5 62. Kh4 Rf8 63. Kg4 Rf7 64. Kh5 Rg7 65. Kh4 Ke4 66. Kh3 Kf3 67. Kh4 Rxg3 68. Kh5 Kf4 69. Kh6 Kf5 70. Kh7 Kf6 71. Kh8 Kf7 72. Kh7 Rh3#) 56. Rc6+ {[%emt 0:00:02]} Kf5 {[%emt 0:00:13]} 57. Rc5+ {[%emt 0:00:03]} Re5 {[%emt 0:00:13]} 58. Rc1 {[%emt 0:00:02]} Rd3 {[%emt 0:00:08] ( -> ...Re2)} 59. Rc4 {[%emt 0:00:21]} (59. Rc2 $19) 59... Re2 {[%emt 0:00:08] Black mates.} 60. Rc1 {[%emt 0:00:49]} Kg4 {[%emt 0:00:30]} 61. Rc5 {[%emt 0:00:34]} Rd1 {[%emt 0:00:20] Weighted Error Value: White=0.76/Black=0.30.  Loses game:     	White=1     	---        Mistake:       	White=9     	Black=9      Inaccurate:     	White=4     	Black=1      OK:         	White=12    	Black=15     Best:        	White=2     	Black=4      Strong:       	White=2     	---        Brilliant:      	White=1     	Black=1} 0-1

[Event "37th Magistral de Leon 2024"]
[Site "Leon"]
[Date "2024.06.28"]
[Round "1.4"]
[White "Anand, Viswanathan"]
[Black "Topalov, Veselin"]
[Result "1/2-1/2"]
[ECO "C07"]
[WhiteElo "2751"]
[BlackElo "2727"]
[Annotator "TA"]
[PlyCount "95"]
[EventDate "2024.06.28"]
[EventCountry "ESP"]
[SourceTitle "playchess.com"]
[Source "ChessBase"]
[SourceQuality "1"]
[TimeControl "1200+10"]

{[%evp 19,95,37,43,18,20,21,31,19,35,10,8,6,13,6,11,4,4,-7,33,32,39,32,31,0,0,0,0,0,0,0,0,0,0,0,0,0,0,0,22,0,0,0,6,11,14,12,8,7,16,16,39,0,9,11,12,0,0,0,8,0,0,0,4,0,60,0,66,52,47,48,60,60,54,50,89,89,156,167]} 1. e4 {[%emt 0:00:03]} e6 {[%emt 0:00:05]} 2. d4 {[%emt 0:00:08]} d5 {[%emt 0:00:01]} 3. Nd2 {[%emt 0:00:03]} a6 {[%emt 0:00:10]} 4. Ngf3 {[%emt 0:00:04]} Nf6 {[%emt 0:00:02]} 5. Bd3 {[%emt 0:00:12]} c5 {[%emt 0:00:01]} 6. dxc5 {[%emt 0:00:07]} Bxc5 {[%emt 0:00:11]} 7. O-O {[%emt 0:00:14]} dxe4 {[%emt 0:01:30] C07: French Tarrasch: 3...c5, 4 Ngf3 and 4 exd5 Qxd5.} 8. Nxe4 Nxe4 {[%emt 0:00:02]} 9. Bxe4 {[%emt 0:00:03]} Qxd1 {[%emt 0:00:01]} 10. Rxd1 {[%emt 0:00:02]} Nd7 {[%emt 0:00:01]} 11. c3 $146 {[%emt 0:00:16]} ({Predecessor:} 11. Nd4 Be7 12. Nb3 Nc5 13. Nxc5 Bxc5 14. Rd3 f6 15. Rc3 Bd4 16. Rc7 Be5 17. Bxb7 Bxb7 18. Rxb7 O-O-O {0-1 Mestre Bellido,H (2404)-Karlsson,L (2453) Montcada op 18th 2010 (6)}) 11... Nf6 {[%emt 0:00:10]} 12. Bc2 {[%emt 0:00:03]} Ng4 {[%emt 0:00:47]} 13. Rd2 {[%emt 0:00:57]} b6 {[%emt 0:00:21]} 14. h3 {[%emt 0:01:08]} Nf6 {[%emt 0:00:01]} 15. Ne5 {[%emt 0:00:03]} Bb7 {[%emt 0:00:11]} 16. Rd1 {[%emt 0:00:27]} Rc8 {[%emt 0:02:08]} 17. a4 {[%emt 0:02:50]} Nd5 {[%emt 0:02:04]} 18. Bb3 {[%emt 0:00:21]} f6 {[%emt 0:02:01]} 19. Nd3 {[%emt 0:00:07]} Ke7 {[%emt 0:00:09]} 20. Nxc5 {[%emt 0:00:14]} bxc5 {[%emt 0:00:02]} 21. Bxd5 {[%emt 0:01:20]} Bxd5 {[%emt 0:00:02]} 22. b4 {[%emt 0:00:02]} Bb3 {[%emt 0:03:01]} 23. Re1 {[%emt 0:00:16]} Rhd8 {[%emt 0:00:12]} 24. Be3 {[%emt 0:00:04]} c4 {[%emt 0:00:26]} 25. b5 {[%emt 0:00:09]} Ra8 {[%emt 0:00:03]} 26. bxa6 {[%emt 0:00:43]} Rxa6 {[%emt 0:00:03]} 27. a5 {[%emt 0:00:01]} Rd5 {[%emt 0:00:53]} 28. Bb6 {[%emt 0:00:05]} Kd7 {[%emt 0:00:02]} 29. Re3 {[%emt 0:00:11]} e5 {[%emt 0:00:14]} 30. Rae1 {[%emt 0:00:07]} g5 {[%emt 0:00:15]} 31. h4 {[%emt 0:00:31]} h6 {[%emt 0:00:19]} 32. hxg5 {[%emt 0:00:04]} hxg5 {[%emt 0:00:00]} 33. Rh3 {[%emt 0:00:02]} Ke6 {[%emt 0:00:30]} 34. Rh8 {[%emt 0:00:16]} Bc2 {[%emt 0:01:21]} 35. Rc1 {[%emt 0:01:00]} Bd3 {[%emt 0:00:12]} 36. Kh2 {[%emt 0:00:31]} Rb5 {[%emt 0:00:06]} 37. Rc8 {[%emt 0:13:36]} Kf5 {[%emt 0:00:41]} 38. Kg3 {[%emt 0:00:00]} Kg6 {[%emt 0:01:27]} 39. Rh1 {[%emt 0:00:00]} Rb3 $1 {[%emt 0:00:46]} 40. Rc1 {[%emt 0:00:00]} Rb2 {[%emt 0:00:14]} 41. Rg8+ {[%emt 0:00:00]} Kf5 {[%emt 0:00:13]} ({Black should play} 41... Kf7 $11 42. Rc8 Be2) 42. Rf8 {[%emt 0:00:00]} (42. Rh1 $1 $14) 42... Be4 {[%emt 0:00:19]} (42... Kg6 $11) 43. Rd1 {[%emt 0:00:00]} Bd3 {[%emt 0:00:02]} 44. Rh1 $1 {[%emt 0:00:00]} Raxb6 {[%emt 0:00:32]} 45. axb6 {[%emt 0:00:00]} Rxb6 {[%emt 0:00:01]} 46. Rh6 {[%emt 0:00:00]} e4 {[%emt 0:00:03]} 47. Rc8 {[%emt 0:00:00]} Ke6 {[%emt 0:00:33]} (47... Re6 $142 48. Rb8 Bc2 49. Rb5+ Re5) 48. Rc5 {[%emt 0:00:00]} 1/2-1/2